bitfinex/quotes_ETHUSD_20240530
["timestamp","ask_amount","ask_price","bid_price","bid_amount"]
[1717076251956,2.65563,3765.6,3764.7,2.88908]
[1717076252173,2.50527569,3765.5,3764.7,2.88908]
[1717076252475,1.93066869,3765.4,3764.7,2.88908]
[1717076252681,1.93066869,3765.3,3764.7,2.88908]
[1717076253014,2.65563,3765.6,3764.7,3.478628]
[1717076253015,1.93066869,3765.2,3764.7,3.478628]
[1717076253171,1.93066869,3765.1,3765.0,2.65601]
[1717076253509,2.65534,3766.0,3765.0,2.65601]
[1717076253650,2.6555,3765.8,3765.0,2.65601]
[1717076254003,1.93043406,3765.7,3765.1,0.07502474]
[1717076254313,1.93043406,3765.7,3765.2,2.65587]
[1717076254598,2.65526,3766.1,3765.2,2.65587]
[1717076254599,1.93043406,3765.6,3765.3,0.07495222]
[1717076254812,1.93043406,3765.5,3765.4,2.65576]
[1717076254965,5.65505,3766.4,3765.4,2.73065943]
[1717076255147,2.50472491,3766.3,3765.4,2.73065943]
[1717076255348,1.93024898,3766.2,3765.4,2.73065943]
[1717076255761,1.93024898,3766.1,3765.6,2.65556]
[1717076256022,1.93024898,3766.0,3765.6,2.65556]
[1717076256306,3.0,3766.8,3765.7,0.07478123]
[1717076256307,1.93024898,3765.9,3765.7,0.07478123]
[1717076256505,2.65481,3766.8,3765.8,0.56868412]
[1717076256674,2.50450577,3766.7,3765.7,0.07478123]
[1717076256871,2.50450577,3766.6,3765.9,0.07469456]
[1717076257076,1.93007952,3766.5,3765.8,0.07463163]
[1717076257276,1.93007952,3766.4,3766.0,0.07455441]
[1717076257503,1.93007952,3766.3,3765.9,0.07459302]
[1717076257667,1.93007952,3766.3,3765.6,9.98556]
[1717076257668,1.93007952,3766.2,3766.1,0.07451581]
[1717076257863,1.93007952,3766.6,3766.0,2.72987441]
[1717076258095,3.0,3766.7,3766.0,2.72987441]
[1717076258096,1.93007952,3766.5,3766.1,0.07451581]
[1717076258293,3.0,3766.7,3766.1,0.07451581]
[1717076258294,1.93007952,3766.4,3766.1,0.07451581]
[1717076258493,1.93007952,3766.3,3766.1,0.07451581]
[1717076258802,3.0,3766.7,3766.1,0.07451581]
[1717076259105,1.92995248,3766.6,3766.1,0.07451581]
[1717076260706,1.92995248,3766.5,3766.1,0.07451581]
[1717076261024,1.92995248,3766.4,3765.6,9.98556]
[1717076261303,1.92995248,3766.4,3766.2,0.07447721]
[1717076261612,1.92995248,3766.4,3766.3,0.07437014]
[1717076262118,1.92995248,3766.4,3765.6,10.84485827]
[1717076262287,1.92995248,3766.3,3765.6,10.84485827]
[1717076262464,1.92995248,3766.2,3765.8,2.65547]
[1717076262667,2.65476,3766.9,3765.9,1.091937]
[1717076262905,2.65488,3766.7,3765.9,0.07452455]
[1717076263202,2.655,3766.5,3765.9,0.07452455]
[1717076263409,1.930038,3766.4,3765.6,7.33]
[1717076263611,1.930038,3766.4,3766.0,0.07418135]
[1717076263810,1.930038,3766.4,3765.6,7.33]
[1717076264014,1.930038,3766.4,3766.1,0.07414274]
[1717076264200,1.930038,3766.4,3765.6,7.33]
[1717076264400,1.930038,3766.4,3766.2,0.07410414]
[1717076264611,1.930038,3766.4,3765.6,7.33]
[1717076264775,1.930038,3766.4,3766.3,0.07406554]
[1717076264971,1.930038,3766.4,3765.6,7.33]
[1717076265505,1.930038,3766.4,3765.7,0.07429717]
[1717076267018,1.930038,3766.4,3765.7,2.72983717]
[1717076267520,1.930038,3766.4,3765.7,4.03147089]
[1717076267817,2.65513,3766.3,3765.7,0.07429717]
[1717076268003,3.22793022,3766.4,3765.7,0.07429717]
[1717076268004,2.65534,3766.0,3765.7,0.07429717]
[1717076268320,1.930038,3765.9,3765.7,0.07429717]
[1717076268552,1.930038,3765.9,3765.2,12.36]
[1717076268825,1.930038,3765.9,3765.3,0.07454843]
[1717076270021,2.65558,3765.7,3765.3,0.07454843]
[1717076270254,3.77793022,3765.6,3765.3,0.07454843]
[1717076270420,4.585718,3765.5,3764.7,7.5629]
[1717076270582,1.930038,3765.4,3764.7,7.5629]
[1717076271284,1.930038,3765.4,3764.7,9.820833]
[1717076271702,1.930038,3765.4,3764.7,12.477073]
[1717076271898,1.930038,3765.3,3764.7,12.477073]
[1717076272107,1.930038,3765.2,3764.7,12.477073]
[1717076272313,2.65546,3765.9,3764.7,12.477073]
[1717076272516,1.93046508,3765.8,3764.9,2.65605]
[1717076273413,1.93046508,3765.8,3765.0,2.9085]
[1717076274473,1.93046508,3765.8,3765.4,2.65571]
[1717076274674,2.6544,3767.4,3765.7,2.9443]
[1717076274961,0.57443756,3767.3,3766.4,2.65504]
[1717076275091,2.65408,3767.8,3766.5,2.9443]
[1717076275092,0.57443756,3767.7,3766.5,2.9443]
[1717076275495,2.65422,3767.6,3766.5,2.9443]
[1717076275718,0.57427997,3767.5,3766.5,2.9443]
[1717076275931,0.57427997,3767.5,3765.8,0.29443]
[1717076275932,1.931,3767.0,3766.0,7.33]
[1717076276132,1.931,3766.6,3766.0,7.33]
[1717076276317,1.931,3766.6,3765.6,7.33]
[1717076276607,0.57446179,3766.5,3765.6,8.98161297]
[1717076277018,2.65484,3766.8,3765.7,2.65552]
[1717076277341,0.57443549,3766.7,3765.7,2.65552]
[1717076277628,3.0,3767.1,3765.7,2.65552]
[1717076277834,0.57437919,3767.0,3765.7,2.65552]
[1717076278009,0.57437919,3767.1,3765.9,2.65535]
[1717076278537,3.95254222,3767.0,3765.9,2.65535]
[1717076278699,2.65482,3766.8,3765.6,7.33]
[1717076278899,1.12436731,3766.7,3765.6,7.33]
[1717076279611,0.57436731,3766.7,3765.7,2.65552]
[1717076279812,0.57436731,3766.7,3765.9,2.65539]
[1717076280353,0.57436731,3766.8,3765.6,7.33]
[1717076280632,0.57436731,3766.8,3765.6,8.62789222]
[1717076280995,4.7899,3767.4,3766.4,2.65502]
[1717076280996,1.931,3767.4,3766.4,2.65502]
[1717076281198,3.0118,3768.0,3765.8,2.9318]
[1717076281199,0.57436292,3767.3,3766.6,2.65491]
[1717076281441,0.57436292,3767.6,3766.6,2.65491]
[1717076281654,0.57436292,3767.6,3766.8,5.50211]
[1717076281815,0.57436292,3768.0,3767.0,2.65462]
[1717076282177,0.57436292,3768.0,3767.0,3.204822]
[1717076282351,2.65356,3768.6,3767.4,2.65432]
[1717076282669,0.57417637,3768.5,3767.4,2.65432]
[1717076282818,0.57417637,3768.5,3767.7,3.0137]
[1717076283359,0.57415899,3768.5,3767.7,3.0137]
[1717076283560,2.65356,3768.6,3767.7,3.0137]
[1717076283760,2.65356,3768.6,3767.8,2.65404]
[1717076283972,2.65326,3769.0,3767.9,0.07330435]
[1717076284264,1.87200648,3768.9,3767.9,0.07330435]
[1717076284417,1.29789222,3768.9,3767.9,0.07330435]
[1717076284622,2.65326,3769.0,3768.0,2.65391]
[1717076284860,2.65326,3769.0,3768.1,0.0530731]
[1717076285067,2.65326,3769.0,3768.2,2.65377]
[1717076285219,1.931,3769.4,3768.3,0.05306956]
[1717076285417,1.931,3769.4,3768.3,0.0731501]
[1717076285418,0.57408218,3769.3,3768.3,0.0731501]
[1717076286071,2.65252,3770.0,3768.6,2.65343]
[1717076286236,1.87190507,3769.9,3768.6,2.65343]
[1717076286434,2.65252,3770.0,3768.8,2.6533]
[1717076286635,3.95041222,3770.0,3768.8,2.6533]
[1717076286840,3.95041222,3770.0,3768.9,0.0721519]
[1717076287823,2.65252,3770.0,3768.9,0.0721519]
[1717076288660,2.65252,3770.0,3768.9,0.34469709]
[1717076291284,2.65252,3770.0,3769.0,2.65321]
[1717076291785,2.65252,3770.0,3769.1,0.07191684]
[1717076294500,1.931,3770.6,3769.2,2.7060769]
[1717076294501,2.65223,3770.5,3769.2,2.7060769]
[1717076294651,2.65223,3770.5,3769.5,2.65281]
[1717076294986,2.65189,3770.9,3769.6,2.94300995]
[1717076295186,2.65189,3770.9,3769.7,2.65266]
[1717076295487,2.65189,3770.9,3769.8,0.07158345]
[1717076296044,2.65189,3770.9,3769.8,0.6258378]
[1717076297196,2.65189,3770.9,3769.9,2.65257]
[1717076297604,2.65162,3771.3,3770.1,2.65244]
[1717076297951,2.65162,3771.3,3770.2,0.07103805]
[1717076298154,2.65162,3771.3,3770.3,2.6523]
[1717076298394,2.65162,3771.3,3770.5,2.65216]
[1717076298593,2.65162,3771.3,3770.6,0.07088398]
[1717076299156,2.65133,3771.7,3770.6,0.07088398]
[1717076299704,0.55,3771.6,3770.7,2.65202]
[1717076299857,0.55,3771.6,3770.7,3.2253704]
[1717076300260,0.55,3771.6,3770.8,0.0533643]
[1717076300569,0.55,3771.6,3770.8,0.06992974]
[1717076300912,2.65133,3771.7,3770.8,0.06992974]
[1717076301977,2.65107,3772.1,3770.9,2.65186]
[1717076302164,0.55,3772.0,3771.0,0.06985273]
[1717076302578,0.55,3772.0,3771.0,0.342024]
[1717076303469,0.55,3772.0,3771.1,3.0072]
[1717076303866,0.55,3772.0,3771.2,0.06977572]
[1717076304483,2.65107,3772.1,3771.2,2.77442444]
[1717076304699,2.65079,3772.5,3771.5,2.65141]
[1717076305007,2.65049,3772.9,3771.7,2.65128]
[1717076305324,3.94838222,3772.9,3771.7,2.65128]
[1717076305464,3.94838222,3772.9,3771.8,0.06943174]
[1717076306164,2.65049,3772.9,3772.0,2.9337]
[1717076306390,2.65049,3772.9,3772.1,0.06921506]
[1717076306806,2.65095,3772.3,3772.1,0.06921506]
[1717076307015,1.33829283,3772.2,3772.1,0.06921506]
[1717076307307,1.33829283,3772.2,3770.7,2.65199]
[1717076307308,7.34129283,3772.2,3771.0,7.33]
[1717076307502,1.931,3771.1,3771.0,7.33]
[1717076307703,2.65195,3770.8,3770.1,7.33]
[1717076308005,2.65195,3770.8,3769.8,2.8731]
[1717076309407,2.65169,3771.2,3770.2,2.65236]
[1717076309612,2.65196,3770.8,3769.8,3.62236907]
[1717076310424,1.29789222,3771.5,3769.7,7.33]
[1717076310425,2.6522,3770.5,3769.7,7.33]
[1717076310633,2.65232,3770.3,3769.7,7.33]
[1717076311646,2.65251,3770.1,3769.3,7.33]
[1717076312131,2.65216,3770.6,3769.3,7.33]
[1717076312327,2.65216,3770.6,3769.3,8.33876]
[1717076312535,2.65216,3770.6,3769.4,2.65293]
[1717076312741,2.65233,3770.3,3769.3,7.33]
[1717076312952,1.29789222,3770.6,3769.3,7.33]
[1717076312953,2.65257,3770.0,3769.3,7.33]
[1717076313540,0.55,3769.9,3769.3,7.33]
[1717076314138,2.65294,3769.4,3769.3,7.33]
[1717076314431,3.20294,3769.4,3768.5,10.2048]
[1717076314578,2.65294,3769.4,3768.5,7.33]
[1717076314780,0.55,3769.3,3768.5,7.33]
[1717076315230,2.65311,3769.2,3768.5,7.33]
[1717076315831,2.65311,3769.2,3767.6,2.65414]
[1717076315832,2.65337,3768.8,3767.6,2.65414]
[1717076316032,2.65337,3768.8,3767.2,7.33]
[1717076316033,2.65357,3768.6,3767.2,2.9238]
[1717076316242,2.65372,3768.3,3767.3,0.557832]
[1717076320223,2.65337,3768.8,3767.4,3.95222222]
[1717076320813,2.65337,3768.8,3767.4,2.65433]
[1717076321336,2.65337,3768.8,3767.4,3.2679262]
[1717076321535,2.571,3769.3,3767.4,2.65433]
[1717076321536,2.65363,3768.5,3767.4,2.65433]
[1717076321739,1.88829283,3768.7,3767.2,2.9238]
[1717076321740,1.29789222,3768.4,3767.2,2.9238]
[1717076322033,1.29789222,3768.4,3766.6,2.7738]
[1717076322034,2.65414,3767.7,3766.6,2.7738]
[1717076322742,2.65428,3767.5,3766.6,2.7738]
[1717076322887,2.65398,3768.0,3766.8,2.65472]
[1717076323488,2.65398,3768.0,3767.0,2.65456]
[1717076323688,2.65398,3768.0,3767.0,2.58764022]
[1717076324143,2.65363,3768.5,3767.4,2.65431]
[1717076325239,2.65363,3768.5,3767.6,2.6542]
[1717076325441,2.65329,3768.9,3767.7,0.54319]
[1717076327221,2.65329,3768.9,3767.6,2.6542]
[1717076327951,2.65351,3768.6,3767.5,2.7777]
[1717076328104,0.55,3768.5,3767.5,2.7777]
[1717076328555,2.6537,3768.4,3767.5,2.7777]
[1717076329144,2.6537,3768.4,3767.6,0.06745696]
[1717076330253,0.06634821,3768.3,3767.6,0.06745696]
[1717076330451,2.6537,3768.4,3767.6,0.06745696]
[1717076330606,2.6537,3768.4,3767.2,9.98448]
[1717076330807,2.6537,3768.4,3767.3,0.06757269]
[1717076331535,5.65339,3768.8,3767.4,2.65433]
[1717076331720,2.65339,3768.8,3767.4,2.65433]
[1717076331931,2.65339,3768.8,3767.6,2.65417]
[1717076332324,2.65339,3768.8,3767.7,0.06748896]
[1717076332929,2.65339,3768.8,3767.7,0.33965486]
[1717076333120,2.65339,3768.8,3767.8,2.65404]
[1717076333324,2.65339,3768.8,3767.9,2.6767]
[1717076333521,2.65339,3768.8,3767.9,2.74416827]
[1717076333728,2.6531,3769.2,3767.9,2.74416827]
[1717076333928,2.9174,3770.2,3768.0,4.59952564]
[1717076334137,5.22319,3770.5,3768.6,2.65347]
[1717076334138,2.65283,3769.6,3768.6,2.65347]
[1717076334342,2.65283,3769.6,3768.8,2.65336]
[1717076334741,2.65283,3769.6,3768.9,0.0670827]
[1717076335867,2.65283,3769.6,3769.0,0.06676668]
[1717076336214,2.65283,3769.6,3768.7,2.7422]
[1717076336460,2.65283,3769.6,3768.8,0.06684378]
[1717076336813,2.65283,3769.6,3768.5,2.65353]
[1717076337015,2.65283,3769.6,3768.6,1.06527388]
[1717076338177,2.65251,3770.1,3768.7,2.65341]
[1717076338317,3.55,3770.0,3768.9,2.65322]
[1717076338520,3.55,3770.0,3769.0,0.05305782]
[1717076338521,0.55,3770.0,3769.0,0.05305782]
[1717076338745,0.55,3770.0,3769.0,0.11982686]
[1717076339074,0.55,3770.0,3769.0,0.06676904]
[1717076339841,0.55,3770.0,3769.0,0.33876794]
[1717076340056,0.55,3770.0,3769.1,2.6531]
[1717076340267,2.65251,3770.1,3769.1,2.6531]
[1717076340589,2.571,3770.5,3769.3,2.65298]
[1717076340590,2.65219,3770.5,3769.3,2.65298]
[1717076340789,3.0,3770.4,3769.3,2.65298]
[1717076341075,3.09676815,3772.0,3769.5,2.65284]
[1717076341281,2.65177,3771.1,3769.8,7.33]
[1717076341626,2.65177,3771.1,3770.0,2.65246]
[1717076341883,2.65177,3771.1,3770.2,2.6908]
[1717076342256,2.65177,3771.1,3770.3,0.06617646]
[1717076343097,2.65171,3771.2,3770.3,2.71843646]
[1717076343219,1.36419022,3771.1,3770.3,0.06617646]
[1717076343542,2.571,3770.9,3769.8,7.33]
[1717076343739,0.55,3770.8,3770.4,0.06325388]
[1717076343955,2.65235,3770.3,3769.8,7.33]
[1717076344163,2.65235,3770.3,3769.4,12.36]
[1717076344520,2.65235,3770.3,3769.4,15.0129]
[1717076345020,1.29789222,3770.2,3769.4,12.36]
[1717076345238,0.55,3770.1,3769.4,12.36]
[1717076346565,2.65235,3770.3,3769.4,12.36]
[1717076346724,2.65206,3770.7,3769.5,2.70590124]
[1717076346924,2.65189,3770.9,3769.8,2.65261]
[1717076348367,2.5767,3772.2,3770.2,2.6979]
[1717076348571,2.65107,3772.1,3770.7,2.65196]
[1717076348884,2.5767,3772.8,3770.3,3.32281854]
[1717076348885,2.65077,3772.5,3771.3,2.65159]
[1717076349670,2.65098,3772.2,3771.3,2.65159]
[1717076349870,2.65098,3772.2,3770.9,2.65187]
[1717076350221,2.571,3772.6,3771.3,2.65155]
[1717076350222,2.65069,3772.6,3771.3,2.65155]
[1717076350739,2.65069,3772.6,3771.6,2.65133]
[1717076351128,2.65042,3773.0,3771.8,2.65122]
[1717076351626,2.65042,3773.0,3771.9,0.06245377]
[1717076351867,2.65066,3772.7,3771.9,0.06245377]
[1717076352186,5.0485,3773.4,3771.9,0.06245377]
[1717076352187,2.65083,3772.4,3771.9,0.06245377]
[1717076352327,2.65083,3772.4,3771.0,5.20219]
[1717076352672,2.65083,3772.4,3771.2,2.65163]
[1717076352830,0.55,3772.3,3771.2,2.65163]
[1717076353024,0.55,3772.3,3771.3,0.06256761]
[1717076353457,2.65083,3772.4,3771.4,2.65148]
[1717076353839,2.65083,3772.4,3771.5,0.06238984]
[1717076354045,2.65056,3772.8,3771.6,2.70440927]
[1717076354281,2.65056,3772.8,3771.6,2.65139]
[1717076354451,2.65056,3772.8,3771.7,0.06230817]
[1717076354931,2.65056,3772.8,3771.9,2.65118]
[1717076355361,2.65056,3772.8,3772.0,0.06219271]
[1717076356783,3.94845222,3772.8,3772.0,0.06219271]
[1717076356998,2.65074,3772.6,3771.6,7.33]
[1717076357205,2.65074,3772.6,3771.7,0.06216764]
[1717076357373,0.55,3772.5,3771.7,0.06216764]
[1717076359799,2.65084,3772.4,3771.7,0.06216764]
[1717076360931,2.65109,3772.1,3771.7,0.06216764]
[1717076361636,2.65109,3772.1,3771.3,12.36]
[1717076362134,2.65109,3772.1,3771.4,0.06233932]
[1717076363286,1.29789222,3772.0,3771.4,0.06233932]
[1717076363439,2.6513,3771.8,3771.4,0.06233932]
[1717076363749,2.65149,3771.5,3770.8,7.33]
[1717076363896,1.29789222,3772.0,3770.4,7.33]
[1717076363897,2.65166,3771.3,3770.4,7.33]
[1717076364437,2.65199,3770.8,3770.4,7.33]
[1717076364627,0.55,3770.7,3770.4,7.33]
[1717076364827,0.55,3770.7,3769.9,2.65255]
[1717076365338,2.65213,3770.6,3769.8,7.33]
[1717076367014,2.65224,3770.4,3769.1,5.13393]
[1717076367230,2.65224,3770.4,3769.1,5.647323]
[1717076367945,2.65248,3770.1,3769.1,5.647323]
[1717076369149,3.0,3770.5,3769.5,2.65287]
[1717076369150,2.65218,3770.5,3769.5,2.65287]
[1717076369307,0.55,3770.7,3769.7,2.65272]
[1717076369508,0.55,3770.8,3769.7,2.65272]
[1717076369711,2.65205,3770.7,3769.7,2.65272]
[1717076371535,2.65205,3770.7,3769.2,2.65302]
[1717076371734,2.65228,3770.4,3769.2,2.65302]
[1717076372069,2.65249,3770.1,3768.8,2.65334]
[1717076373807,2.65249,3770.1,3769.1,2.65309]
[1717076374319,2.65249,3770.1,3769.2,0.0634655]
[1717076374722,2.65214,3770.6,3769.4,2.6529]
[1717076375069,2.65184,3771.0,3769.7,2.6527]
[1717076375365,2.65107,3772.1,3770.3,2.65226]
[1717076375366,2.65156,3771.4,3770.3,2.65226]
[1717076375661,2.65156,3771.4,3770.4,0.06329607]
[1717076376853,2.65156,3771.4,3770.4,1.06785168]
[1717076378342,2.65156,3771.4,3770.5,2.65214]
[1717076378849,2.65156,3771.4,3770.6,0.06298706]
[1717076379421,2.65177,3771.1,3770.6,0.06298706]
[1717076379624,2.65177,3771.1,3770.1,9.98241]
[1717076379822,2.6515,3771.5,3770.3,2.6523]
[1717076380022,2.6515,3771.5,3770.4,0.06309455]
[1717076380222,0.55,3771.4,3770.4,0.06309455]
[1717076380427,0.55,3771.4,3770.4,1.16745811]
[1717076381165,2.6515,3771.5,3770.5,2.65209]
[1717076381665,2.6515,3771.5,3770.6,0.06300112]
[1717076382468,2.65161,3771.3,3770.6,0.06300112]
[1717076382668,2.65161,3771.3,3770.1,9.9824]
[1717076382969,2.65161,3771.3,3770.3,2.65229]
[1717076383339,2.65161,3771.3,3770.4,0.06307815]
[1717076383542,2.65184,3771.0,3770.4,0.06307815]
[1717076383936,2.65184,3771.0,3770.1,7.33]
[1717076384140,2.65184,3771.0,3770.5,0.06303963]
[1717076384323,2.65184,3771.0,3770.1,7.33]
[1717076384866,2.65184,3771.0,3770.2,0.06315518]
[1717076386057,1.29789222,3771.3,3770.2,0.06315518]
[1717076386058,2.65207,3770.7,3770.2,0.06315518]
[1717076388041,2.65226,3770.4,3770.2,0.06315518]
[1717076388283,2.65226,3770.4,3769.7,7.33]
[1717076388470,2.65226,3770.4,3770.3,0.0630159]
[1717076388641,2.65226,3770.4,3769.7,7.33]
[1717076389042,2.65226,3770.4,3769.8,0.06320851]
[1717076391393,2.65246,3770.1,3769.8,0.06320851]
[1717076391765,2.65246,3770.1,3769.7,7.33]
[1717076392091,2.65246,3770.1,3769.9,0.06316998]
[1717076392386,2.65246,3770.1,3769.8,0.06320851]
[1717076392597,2.65246,3770.1,3770.0,0.06313146]
[1717076392792,3.20246,3770.1,3769.9,0.06316998]
[1717076392945,3.20246,3770.1,3770.0,0.06313146]
[1717076393146,3.20246,3770.1,3769.7,7.33]
[1717076393371,3.20246,3770.1,3770.0,0.06313146]
[1717076393678,2.65246,3770.1,3770.0,0.06313146]
[1717076393997,2.65246,3770.1,3769.3,12.36]
[1717076394292,2.65246,3770.1,3769.3,5.14505]
[1717076394656,2.65246,3770.1,3769.4,0.06336264]
[1717076396276,2.65221,3770.5,3769.4,0.11641316]
[1717076396474,1.12385206,3770.4,3769.4,0.06336264]
[1717076396673,1.12385206,3770.4,3769.4,1.5749839]
[1717076398498,0.55,3770.4,3769.4,1.5749839]
[1717076399991,2.65231,3770.3,3769.4,1.5749839]
[1717076400608,2.65209,3770.7,3769.5,2.70590903]
[1717076400926,2.65216,3770.5,3769.6,0.49134819]
[1717076401103,9.50589222,3770.4,3769.6,0.0632589]
[1717076401309,2.65266,3769.8,3769.6,0.0632589]
[1717076401461,1.928,3769.9,3769.2,7.33]
[1717076401462,2.65283,3769.6,3769.2,7.33]
[1717076401661,2.65294,3769.4,3769.3,0.06346358]
[1717076401867,3.20294,3769.4,3769.2,7.33]
[1717076402107,2.65294,3769.4,3769.2,7.33]
[1717076402326,2.65294,3769.4,3769.3,0.06366978]
[1717076402622,2.65337,3768.8,3768.4,7.33]
[1717076402827,2.6531,3769.2,3768.4,0.733]
[1717076403028,2.6531,3769.2,3768.5,0.06413053]
[1717076403029,0.55,3769.1,3768.5,0.06413053]
[1717076403381,0.55,3769.1,3768.2,2.65375]
[1717076403382,2.65322,3769.0,3768.2,2.65375]
[1717076403579,2.65322,3769.0,3768.6,0.0641928]
[1717076403926,2.65322,3769.0,3768.2,2.65375]
[1717076403927,2.65322,3769.0,3768.7,0.06415425]
[1717076404083,2.65322,3769.0,3768.2,2.65375]
[1717076404284,2.65322,3769.0,3768.3,0.06430847]
[1717076404523,0.55,3769.1,3768.0,12.36]
[1717076404524,2.65345,3768.7,3768.0,12.36]
[1717076404827,2.65357,3768.5,3768.4,0.06426991]
[1717076404977,4.58157,3768.5,3768.0,12.36]
[1717076405184,4.58157,3768.5,3767.9,7.33]
[1717076405185,7.27557,3768.5,3768.4,0.06426991]
[1717076405411,7.27557,3768.5,3767.0,5.25059]
[1717076405412,2.65383,3768.2,3767.0,5.25059]
[1717076405619,7.10123942,3768.5,3766.6,7.33]
[1717076405620,2.65403,3767.9,3767.1,0.525059]
[1717076405880,1.928,3767.6,3766.6,2.65487]
[1717076406629,1.928,3767.6,3766.7,0.06492567]
[1717076406630,2.65425,3767.6,3766.7,0.06492567]
[1717076406976,2.65425,3767.6,3766.6,2.65487]
[1717076407180,2.65425,3767.6,3766.7,0.525087]
[1717076407401,1.928,3768.0,3766.8,2.65476]
[1717076407402,2.65395,3768.0,3766.8,2.65476]
[1717076407619,0.55,3767.9,3766.8,2.65476]
[1717076407830,0.55,3767.9,3766.9,0.06484849]
[1717076408036,3.0,3768.4,3767.0,2.70770473]
[1717076408242,2.65367,3768.4,3767.5,2.65424]
[1717076408381,2.6288,3769.1,3767.4,2.6275]
[1717076408382,2.65336,3768.9,3767.7,2.65407]
[1717076408743,2.65336,3768.9,3767.6,0.05307501]
[1717076408744,2.65303,3769.3,3767.8,1.35096278]
[1717076408889,2.65275,3769.7,3768.3,2.65366]
[1717076409090,1.92878837,3769.6,3768.3,2.65366]
[1717076409409,2.65289,3769.5,3768.4,0.06426991]
[1717076409817,2.65289,3769.5,3768.5,2.65352]
[1717076410124,2.65261,3769.9,3768.8,2.65332]
[1717076410290,2.65261,3769.9,3768.9,0.265332]
[1717076410484,2.65261,3769.9,3769.0,0.06403861]
[1717076411313,2.65232,3770.3,3769.1,2.65315]
[1717076411636,2.65232,3770.3,3769.1,2.71715007]
[1717076411932,2.65232,3770.3,3769.2,0.29824821]
[1717076412229,2.65232,3770.3,3769.2,0.06396153]
[1717076412630,2.65254,3770.0,3769.2,0.06396153]
[1717076412802,0.55,3769.9,3769.2,0.06396153]
[1717076412985,0.55,3769.9,3768.6,2.65345]
[1717076413187,0.55,3769.9,3769.3,0.06392299]
[1717076413384,0.55,3769.9,3768.6,2.65345]
[1717076413627,0.55,3769.9,3769.4,0.06402275]
[1717076413829,0.55,3769.9,3768.8,2.65333]
[1717076414018,0.55,3769.9,3769.5,0.06398421]
[1717076414527,0.55,3769.9,3769.6,0.06394568]
[1717076414839,0.55,3769.9,3769.0,7.33]
[1717076414994,0.55,3769.9,3769.0,8.3815955]
[1717076415196,0.55,3769.9,3769.1,0.06413837]
[1717076415595,2.65254,3770.0,3769.1,2.71723837]
[1717076415999,2.65226,3770.4,3769.1,2.71723837]
[1717076416207,3.55,3770.3,3769.1,2.71723837]
[1717076416533,3.55,3770.3,3769.2,1.10988339]
[1717076416849,0.55,3770.3,3769.2,1.17388707]
[1717076417248,3.0,3770.7,3769.6,2.65274]
[1717076417558,3.0,3770.7,3769.7,0.06381101]
[1717076418108,3.0,3770.7,3769.8,2.65265]
[1717076418424,3.0,3770.7,3769.8,2.71638966]
[1717076418626,2.65197,3770.8,3769.8,2.98802863]
[1717076419622,0.55,3770.7,3769.8,2.98802863]
[1717076420750,2.65167,3771.2,3770.1,2.6524]
[1717076421061,2.65142,3771.6,3770.4,2.6522]
[1717076421211,1.29789222,3771.5,3770.4,2.6522]
[1717076421415,1.29789222,3771.5,3770.5,0.0632614]
[1717076422547,2.65159,3771.4,3770.5,0.0632614]
[1717076422713,0.55,3771.3,3770.5,0.0632614]
[1717076424337,2.65168,3771.2,3770.5,0.0632614]
[1717076424954,2.65205,3770.7,3770.3,7.33]
[1717076425136,2.65205,3770.7,3769.6,2.65275]
[1717076425137,0.55,3770.6,3769.7,7.33]
[1717076425337,2.65219,3770.5,3769.7,7.33]
[1717076426959,2.6524,3770.2,3769.7,7.33]
[1717076427165,0.55,3770.1,3769.7,7.33]
[1717076430667,2.65253,3770.0,3769.7,7.33]
[1717076430973,2.65266,3769.8,3769.7,7.33]
[1717076431264,2.65266,3769.8,3768.9,7.33]
[1717076434117,2.65266,3769.8,3769.0,0.09072744]
[1717076435023,2.65266,3769.8,3769.1,0.33609819]
[1717076435160,4.58142,3770.2,3769.1,2.98922819]
[1717076435361,2.65242,3770.2,3769.2,2.63913479]
[1717076435615,2.65242,3770.2,3769.3,0.2975233]
[1717076436042,2.65242,3770.2,3769.4,0.09115626]
[1717076436621,5.65214,3770.6,3769.4,2.74407626]
[1717076436780,5.47813427,3770.5,3769.4,2.74407626]
[1717076436986,3.55,3770.5,3769.4,2.74407626]
[1717076437181,3.55,3770.5,3769.5,1.29194996]
[1717076437561,4.58085,3771.0,3769.9,2.65257]
[1717076437915,0.57381181,3770.9,3769.9,2.65257]
[1717076438117,4.58085,3771.0,3770.0,0.09083166]
[1717076438688,2.65185,3771.0,3770.0,0.36517183]
[1717076438866,3.0,3770.9,3770.0,0.36517183]
[1717076439299,0.57377368,3770.8,3770.0,0.36517183]
[1717076439818,0.57377368,3770.8,3770.0,0.09083166]
[1717076439819,2.65203,3770.7,3770.0,0.09083166]
[1717076440371,0.57379498,3770.6,3770.0,0.09083166]
[1717076441712,2.65219,3770.5,3770.0,0.09083166]
[1717076442077,2.65219,3770.5,3769.5,2.65283]
[1717076442266,2.65219,3770.5,3770.1,0.09074788]
[1717076442463,2.65219,3770.5,3769.5,2.65283]
[1717076442704,2.65219,3770.5,3770.2,0.09070863]
[1717076443007,2.65219,3770.5,3769.5,2.65283]
[1717076443008,0.57383048,3770.4,3769.5,2.65283]
[1717076443304,2.65232,3770.3,3769.5,5.17165533]
[1717076443533,2.65232,3770.3,3769.6,0.09094414]
[1717076444306,2.65253,3770.0,3769.6,0.09094414]
[1717076444503,3.0,3770.9,3769.6,0.09094414]
[1717076444504,2.65266,3769.8,3769.6,0.09094414]
[1717076444674,2.65266,3769.8,3769.3,19.69]
[1717076444888,4.58166,3769.8,3769.7,0.09099161]